fUST/lending_fUST_20250427
["ID","MTS","AMOUNT","RATE_DAILY","PERIOD"]
[359116728,1745714230477,-163.46960795,0.00013698,2]
[359116729,1745714230500,-41.78098853,0.00013698,2]
[359116730,1745714234474,-244.82569589,0.00013599,2]
[359116731,1745714238186,-255.17430411,0.00013599,2]
[359116732,1745714242425,-42.78323393,0.00013599,2]
[359116733,1745714242452,-458.21901147,0.00013698,2]
[359116734,1745714242476,-206.69997784,0.00013698,2]
[359116736,1745714253739,-13.11415631,0.00013698,2]
[359116737,1745714253763,-138.88584369,0.00013698,2]
[359116738,1745714260275,-13.11415631,0.00013698,2]
[359116739,1745714260300,-141.68597073,0.00013698,2]
[359116740,1745714266889,-226.584288,0.00013698,2]
[359116741,1745714266912,-25.86942005,0.00013698,2]
[359116742,1745714271147,-210.31372063,0.00013698,2]
[359116743,1745714274271,-73.40850183,0.00013698,2]
[359116744,1745714274296,-94.90091716,0.00013698,2]
[359116745,1745714277719,-93.1295492,0.00013698,2]
[359116746,1745714277743,-253.29091742,0.00013698,2]
[359116747,1745714277767,-244.82569589,0.00013698,2]
[359116748,1745714277789,-255.17430411,0.00013698,2]
[359116749,1745714277812,-170.1,0.00013699,2]
[359116750,1745714277834,-113.66982993,0.00013699,2]
[359116751,1745714303890,-56.43017007,0.00013699,2]
[359116752,1745714303914,-96.33013457,0.00013699,2]
[359116753,1745714310755,-73.76986543,0.00013699,2]
[359116754,1745714310777,-170.1,0.00013699,2]
[359116755,1745714310800,-117.46877053,0.00013699,2]
[359116756,1745714313530,-52.63122947,0.00013699,2]
[359116757,1745714313556,-155.94710185,0.00013699,2]
[359116758,1745714330974,-179.00545056,0.00013597,2]
[359116759,1745714336322,-174.60912803,0.00013597,2]
[359116760,1745714339529,-348.0,0.00013597,2]
[359116761,1745714343314,-187.23134576,0.00013597,2]
[359116762,1745714350648,-111.15407565,0.00013597,2]
[359116763,1745714350671,-97.48970069,0.00013698,2]
[359116764,1745714354339,-202.51029931,0.00013698,2]
[359116765,1745714354362,-14.17333999,0.00013699,2]
[359116766,1745714354385,-32.13191304,0.00013699,2]
[359116767,1745714360406,-170.60694021,0.00013599,2]
[359116768,1745714364510,-79.39305979,0.00013599,2]
[359116769,1745714364536,-136.72543159,0.00013698,2]
[359116770,1745714371015,-175.1107754,0.00013698,2]
[359116771,1745714374675,-188.16379301,0.00013698,2]
[359116772,1745714374704,-120.07378092,0.00013698,2]
[359116773,1745714382753,-379.92621908,0.00013698,2]
[359116774,1745714382778,-167.8084852,0.00013699,2]
[359116775,1745714396306,-251.50308875,0.00013698,2]
[359116776,1745714405005,-56.44325758,0.00013698,2]
[359116777,1745714405057,-236.64766515,0.00013698,2]
[359116779,1745714414061,-63.35233485,0.00013698,2]
[359116780,1745714414109,-96.10594075,0.00013698,2]
[359116781,1745714418270,-441.99256563,0.00013698,2]
[359116783,1745714424741,-158.00743437,0.00013698,2]
[359116784,1745714430056,-503.89405925,0.00013698,2]
[359116785,1745714430078,-57.55702029,0.00013699,2]
[359116786,1745714440700,-6.18198029,0.00013699,2]
[359116787,1745714440725,-193.81801971,0.00013699,2]
[359116788,1745714445592,-76.56181737,0.00013699,2]
[359116789,1745714445627,-223.43818263,0.00013699,2]
[359116790,1745714448685,-152.0,0.00013699,2]
[359116791,1745714452468,-159.19338762,0.00013699,2]
[359116792,1745714452503,-170.22361238,0.00013699,2]
[359116793,1745714458451,-177.13192046,0.00013699,2]
[359116794,1745714462742,-300.0,0.00013599,2]
[359116795,1745714467965,-163.04468616,0.00013599,2]
[359116796,1745714472157,-11.89064352,0.00013599,2]
[359116797,1745714472186,-300.0,0.00013698,2]
[359116798,1745714472222,-187.27603741,0.00013699,2]
[359116799,1745714472255,-79.67082706,0.00013699,2]
[359116800,1745714481087,-281.16852699,0.00013699,2]
[359116801,1745714484189,-152.0,0.00013699,2]
[359116802,1745714488667,-21.7922162,0.00013699,2]
[359116803,1745714488696,-283.58871053,0.00013699,2]
[359116805,1745714494405,-220.21239974,0.00013699,2]
[359116806,1745714503079,-30.83045998,0.00013699,2]
[359116807,1745714503112,-210.59457371,0.00013699,2]
[359116808,1745714508940,-179.00545056,0.00013699,2]
[359116809,1745714511669,-145.03154598,0.00013699,2]
[359116810,1745714511703,-104.96845402,0.00013699,2]
[359116811,1745714519335,-251.74029489,0.00013699,2]
[359116812,1745714526970,-177.92282134,0.00013699,2]
[359116813,1745714527001,-23.46941458,0.00013699,2]
[359116814,1745714531936,-165.287178,0.00013699,2]
[359116815,1745714536197,-277.91069626,0.00013699,2]
[359116816,1745714539357,-67.96428141,0.00013699,2]
[359116817,1745714539384,-385.53194427,0.00013699,2]
[359116827,1745714954082,-163.0446862,0.00013358,2]
[359116828,1745714954104,-300.0,0.00013672,2]
[359116829,1745714954125,-498.79310503,0.00013673,2]
[359116831,1745715015575,977.46776822,0.00013037,2]
[359116890,1745715037763,-739.30559893,0.00013037,2]
[359116893,1745715037777,-7452.56707426,0.00013037,2]
[359116895,1745715037789,-15730.65955859,0.00013037,2]
[359116897,1745715037800,-494.39700667,0.00013599,2]
[359116899,1745715037810,-1200.0,0.00013672,2]
[359116901,1745715037820,-292.0,0.00013672,2]
[359116903,1745715037830,-1.20689497,0.00013673,2]
[359116905,1745715037839,-385.39333941,0.00013673,2]
[359116907,1745715037851,-500.0,0.00013673,2]
[359116909,1745715037861,-392.66324346,0.00013673,2]
[359116911,1745715037871,-473.81451613,0.00013673,2]
[359116913,1745715037880,-500.0,0.00013699,2]
[359116915,1745715037890,-800.13203788,0.00013699,2]
[359116917,1745715037900,-800.13203788,0.00013699,2]
[359116920,1745715037909,-336.20008241,0.00013699,2]
[359116923,1745715037919,-800.13203788,0.00013699,2]
[359116925,1745715037929,-800.13203788,0.00013699,2]
[359116927,1745715037939,-800.13203788,0.00013699,2]
[359116929,1745715037950,-800.13203788,0.00013699,2]
[359116931,1745715037959,-800.13203788,0.00013699,2]
[359116933,1745715037969,-800.13203788,0.00013699,2]
[359116935,1745715037979,-800.13203788,0.00013699,2]
[359116937,1745715037990,-800.13203788,0.00013699,2]
[359116939,1745715038000,-800.13203788,0.00013699,2]
[359116941,1745715038010,-800.13203788,0.00013699,2]
[359116943,1745715038019,-800.13203788,0.00013699,2]
[359116945,1745715038029,-800.13203788,0.00013699,2]
[359116947,1745715038039,-800.13203788,0.00013699,2]
[359116950,1745715038049,-800.13203788,0.00013699,2]
[359116952,1745715038059,-800.13203788,0.00013699,2]
[359116954,1745715038068,-800.13203788,0.00013699,2]
[359116956,1745715038078,-800.13203788,0.00013699,2]
[359116958,1745715038088,-800.13203788,0.00013699,2]
[359116960,1745715038097,-800.13203788,0.00013699,2]
[359116962,1745715038107,-800.13203788,0.00013699,2]
[359116964,1745715038118,-800.13203788,0.00013699,2]
[359116966,1745715038128,-800.13203788,0.00013699,2]
[359116968,1745715038137,-800.13203788,0.00013699,2]
[359116970,1745715038147,-800.13203788,0.00013699,2]
[359116972,1745715038157,-800.13203788,0.00013699,2]
[359116974,1745715038168,-800.13203788,0.00013699,2]
[359116976,1745715038177,-800.13203788,0.00013699,2]
[359116978,1745715038187,-800.13203788,0.00013699,2]
[359116980,1745715038196,-800.13203788,0.00013699,2]
[359116982,1745715038206,-800.13203788,0.00013699,2]
[359116984,1745715038216,-800.13203788,0.00013699,2]
[359116986,1745715038225,-800.13203788,0.00013699,2]
[359116988,1745715038235,-800.13203788,0.00013699,2]
[359116990,1745715038244,-800.13203788,0.00013699,2]
[359116992,1745715038254,-800.13203788,0.00013699,2]
[359116994,1745715038264,-800.13203788,0.00013699,2]
[359116996,1745715038274,-800.13203788,0.00013699,2]
[359116998,1745715038284,-800.13203788,0.00013699,2]
[359117000,1745715038294,-800.13203788,0.00013699,2]
[359117002,1745715038303,-800.13203788,0.00013699,2]
[359117004,1745715038313,-800.13203788,0.00013699,2]
[359117006,1745715038323,-800.13203788,0.00013699,2]
[359117008,1745715038333,-800.13203788,0.00013699,2]
[359117010,1745715038342,-800.13203788,0.00013699,2]
[359117012,1745715038352,-800.13203788,0.00013699,2]
[359117014,1745715038361,-800.13203788,0.00013699,2]
[359117016,1745715038371,-800.13203788,0.00013699,2]
[359117018,1745715038381,-800.13203788,0.00013699,2]
[359117020,1745715038390,-181.036057,0.00013712,2]
[359117022,1745715038403,-438.5530485,0.00015039,2]
[359117024,1745715038413,-438.5794093,0.00015039,2]
[359117026,1745715038423,-165.287178,0.00015098,2]
[359117028,1745715038432,-2788.34850147,0.000155,2]
[359117030,1745715038442,-500.0,0.00015824,2]
[359117032,1745715038453,-500.0,0.00015824,2]
[359117034,1745715038463,-209.42717845,0.000159,2]
[359117036,1745715038473,-328.37456719,0.00016338,2]
[359117038,1745715038484,-212.88,0.00016428,3]
[359117040,1745715038494,-638.68,0.00016428,3]
[359117042,1745715038504,-400.0,0.00016438,2]
[359117044,1745715038513,-400.0,0.00016438,2]
[359117046,1745715038523,-525.06593489,0.00016438,2]
[359117048,1745715038533,-305.67676123,0.00016438,2]
[359117050,1745715038543,-400.0,0.00016438,2]
[359117052,1745715038552,-400.0,0.00016438,2]
[359117054,1745715038563,-400.0,0.00016438,2]
[359117056,1745715038573,-500.0,0.00016438,2]
[359117058,1745715038583,-400.0,0.00016438,2]
[359117060,1745715038593,-400.0,0.00016438,2]
[359117062,1745715038603,-457.19573295,0.00016438,2]
[359117065,1745715038613,-500.0,0.00016438,2]
[359117067,1745715038622,-517.89605844,0.00016438,2]
[359117068,1745715038631,-400.0,0.00016438,2]
[359117071,1745715038641,-400.0,0.00016438,2]
[359117072,1745715038651,-400.0,0.00016438,2]
[359117075,1745715038662,-400.0,0.00016438,2]
[359117077,1745715038672,-500.0,0.00016438,2]
[359117079,1745715038681,-305.23315758,0.00016438,2]
[359117081,1745715038691,-400.0,0.00016438,2]
[359117083,1745715038701,-488.2337856,0.00016438,2]
[359117085,1745715038711,-500.0,0.00016438,2]
[359117087,1745715038720,-400.0,0.00016438,2]
[359117089,1745715038730,-300.0,0.00016438,2]
[359117091,1745715038739,-400.0,0.00016438,2]
[359117093,1745715038749,-400.0,0.00016438,2]
[359117095,1745715038762,-500.0,0.00016438,2]
[359117097,1745715038772,-500.0,0.00016438,2]
[359117099,1745715038782,-500.0,0.00016438,2]
[359117101,1745715038791,-400.0,0.00016438,2]
[359117103,1745715038801,-500.0,0.00016438,2]
[359117105,1745715038812,-400.0,0.00016438,2]
[359117107,1745715038821,-400.0,0.00016438,2]
[359117109,1745715038830,-400.0,0.00016438,2]
[359117111,1745715038840,-464.54984897,0.00016438,2]
[359117113,1745715038849,-400.0,0.00016438,2]
[359117115,1745715038858,-400.0,0.00016438,2]
[359117117,1745715038868,-215.98595171,0.00016438,2]
[359117119,1745715038878,-400.0,0.00016438,2]
[359117121,1745715038888,-309.38435186,0.00016438,2]
[359117123,1745715038898,-400.0,0.00016438,2]
[359117125,1745715038908,-400.0,0.00016438,2]
[359117127,1745715038918,-400.0,0.00016438,2]
[359117129,1745715038929,-400.0,0.00016438,2]
[359117131,1745715038940,-400.0,0.00016438,2]
[359117133,1745715038950,-400.0,0.00016438,2]
[359117135,1745715038960,-400.0,0.00016438,2]
[359117137,1745715038970,-400.0,0.00016438,2]
[359117139,1745715038981,-400.0,0.00016438,2]
[359117141,1745715038990,-344.44888361,0.00016438,2]
[359117143,1745715039001,-400.0,0.00016438,2]
[359117145,1745715039010,-400.0,0.00016438,2]
[359117147,1745715039021,-400.0,0.00016438,2]
[359117149,1745715039031,-400.0,0.00016438,2]
[359117151,1745715039041,-400.0,0.00016438,2]
[359117153,1745715039051,-500.0,0.00016438,2]
[359117155,1745715039060,-400.0,0.00016438,2]
[359117157,1745715039071,-500.0,0.00016438,2]
[359117159,1745715039081,-400.0,0.00016438,2]
[359117161,1745715039091,-400.0,0.00016438,2]
[359117163,1745715039101,-400.0,0.00016438,2]
[359117165,1745715039110,-400.0,0.00016438,2]
[359117167,1745715039120,-510.66063696,0.00016438,2]
[359117169,1745715039130,-400.0,0.00016438,2]
[359117171,1745715039140,-526.25412099,0.00016438,2]
[359117173,1745715039149,-400.0,0.00016438,2]
[359117175,1745715039160,-500.0,0.00016438,2]
[359117177,1745715039170,-343.22197232,0.00016438,2]
[359117179,1745715039179,-294.13508364,0.00016438,2]
[359117181,1745715039189,-300.0,0.00016438,2]
[359117183,1745715039198,-300.0,0.00016438,2]
[359117185,1745715039207,-400.0,0.00016438,2]
[359117187,1745715039217,-140.82171406,0.00016438,2]
[359117190,1745715039233,-359.17828594,0.00016438,2]
[359117192,1745715039242,-400.0,0.00016438,2]
[359117194,1745715039252,-500.0,0.00016438,2]
[359117196,1745715039262,-203.55650057,0.00016438,2]
[359117198,1745715039272,-400.0,0.00016438,2]
[359117199,1745715039281,-400.0,0.00016438,2]
[359117200,1745715039291,-500.0,0.00016438,2]
[359117201,1745715039301,-400.0,0.00016438,2]
[359117202,1745715039311,-220.922,0.00016438,2]
[359117203,1745715039323,-500.0,0.00016438,2]
[359117205,1745715039333,-400.0,0.00016438,2]
[359117207,1745715039343,-500.0,0.00016438,2]
[359117209,1745715039352,-400.0,0.00016438,2]
[359117210,1745715039362,-285.56354832,0.00016438,2]
[359117211,1745715039372,-400.0,0.00016438,2]
[359117212,1745715039382,-500.0,0.00016438,2]
[359117213,1745715039391,-400.0,0.00016438,2]
[359117214,1745715039403,-500.0,0.00016438,2]
[359117215,1745715039414,-400.0,0.00016438,2]
[359117216,1745715039424,-503.40732902,0.00016438,2]
[359117217,1745715039433,-511.04728586,0.00016438,2]
[359117218,1745715039443,-200.0,0.00016438,2]
[359117219,1745715039453,-400.0,0.00016438,2]
[359117220,1745715039463,-400.0,0.00016438,2]
[359117221,1745715039475,-400.0,0.00016438,2]
[359117223,1745715039486,-500.0,0.00016438,2]
[359117225,1745715039496,-400.0,0.00016438,2]
[359117227,1745715039506,-164.13470118,0.00016438,2]
[359117229,1745715039515,-400.0,0.00016438,2]
[359117231,1745715039527,-400.0,0.00016438,2]
[359117233,1745715039537,-400.0,0.00016438,2]
[359117235,1745715039547,-507.78444337,0.00016438,2]
[359117237,1745715039557,-221.42063702,0.00016438,2]
[359117239,1745715039568,-400.0,0.00016438,2]
[359117241,1745715039578,-400.0,0.00016438,2]
[359117243,1745715039588,-400.0,0.00016438,2]
[359117245,1745715039598,-400.0,0.00016438,2]
[359117247,1745715039608,-500.0,0.00016438,2]
[359117249,1745715039617,-400.0,0.00016438,2]
[359117251,1745715039626,-400.0,0.00016438,2]
[359117253,1745715039636,-400.0,0.00016438,2]
[359117255,1745715039645,-400.0,0.00016438,2]
[359117257,1745715039655,-400.0,0.00016438,2]
[359117259,1745715039665,-400.0,0.00016438,2]
[359117261,1745715039675,-400.0,0.00016438,2]
[359117263,1745715039685,-400.0,0.00016438,2]
[359117265,1745715039695,-400.0,0.00016438,2]
[359117267,1745715039705,-400.0,0.00016438,2]
[359117269,1745715039716,-400.0,0.00016438,2]
[359117271,1745715039726,-400.0,0.00016438,2]
[359117273,1745715039737,-400.0,0.00016438,2]
[359117275,1745715039747,-400.0,0.00016438,2]
[359117278,1745715039758,-400.0,0.00016438,2]
[359117280,1745715039768,-400.0,0.00016438,2]
[359117282,1745715039777,-400.0,0.00016438,2]
[359117284,1745715039788,-400.0,0.00016438,2]
[359117286,1745715039797,-400.0,0.00016438,2]
[359117288,1745715039807,-500.0,0.00016438,2]
[359117290,1745715039817,-400.0,0.00016438,2]
[359117292,1745715039826,-400.0,0.00016438,2]
[359117294,1745715039836,-400.0,0.00016438,2]
[359117296,1745715039847,-400.0,0.00016438,2]
[359117298,1745715039856,-400.0,0.00016438,2]
[359117300,1745715039866,-400.0,0.00016438,2]
[359117302,1745715039875,-500.0,0.00016438,2]
[359117304,1745715039884,-400.0,0.00016438,2]
[359117306,1745715039896,-500.0,0.00016438,2]
[359117308,1745715039905,-400.0,0.00016438,2]
[359117310,1745715039916,-400.0,0.00016438,2]
[359117330,1745715040098,-400.0,0.00016438,2]
[359117332,1745715040108,-400.0,0.00016438,2]
[359117334,1745715040118,-400.0,0.00016438,2]
[359117336,1745715040128,-400.0,0.00016438,2]
[359117338,1745715040138,-500.0,0.00016438,2]
[359117340,1745715040150,-400.0,0.00016438,2]
[359117342,1745715040160,-400.0,0.00016438,2]
[359117344,1745715040170,-400.0,0.00016438,2]
[359117346,1745715040179,-400.0,0.00016438,2]
[359117348,1745715040189,-400.0,0.00016438,2]
[359117350,1745715040198,-300.0,0.00016438,2]
[359117352,1745715040208,-400.0,0.00016438,2]
[359117354,1745715040218,-400.0,0.00016438,2]
[359117356,1745715040228,-400.0,0.00016438,2]
[359117358,1745715040237,-500.0,0.00016438,2]
[359117360,1745715040247,-400.0,0.00016438,2]
[359117362,1745715040257,-400.0,0.00016438,2]
[359117364,1745715040266,-400.0,0.00016438,2]
[359117366,1745715040275,-400.0,0.00016438,2]
[359117368,1745715040284,-507.17790195,0.00016438,2]
[359117370,1745715040294,-400.0,0.00016438,2]
[359117372,1745715040304,-400.0,0.00016438,2]
[359117374,1745715040313,-400.0,0.00016438,2]
[359117376,1745715040322,-400.0,0.00016438,2]
[359117379,1745715040337,-500.0,0.00016438,2]
[359117381,1745715040348,-400.0,0.00016438,2]
[359117383,1745715040357,-400.0,0.00016438,2]
[359117385,1745715040367,-400.0,0.00016438,2]
[359117387,1745715040376,-400.0,0.00016438,2]
[359117389,1745715040386,-400.0,0.00016438,2]
[359117391,1745715040396,-400.0,0.00016438,2]
[359117393,1745715040408,-400.0,0.00016438,2]
[359117395,1745715040418,-400.0,0.00016438,2]
[359117397,1745715040428,-505.38919997,0.00016438,2]
[359117399,1745715040437,-400.0,0.00016438,2]
[359117401,1745715040449,-400.0,0.00016438,2]
[359117403,1745715040458,-400.0,0.00016438,2]
[359117405,1745715040468,-400.0,0.00016438,2]
[359117407,1745715040477,-400.0,0.00016438,2]
[359117409,1745715040487,-405.1418878,0.00016438,2]
[359117411,1745715040497,-400.0,0.00016438,2]
[359117414,1745715040507,-400.0,0.00016438,2]
[359117416,1745715040516,-400.0,0.00016438,2]
[359117418,1745715040526,-400.0,0.00016438,2]
[359117420,1745715040536,-400.0,0.00016438,2]
[359117422,1745715040546,-400.0,0.00016438,2]
[359117424,1745715040555,-400.0,0.00016438,2]
[359117426,1745715040565,-506.12,0.00016438,2]
[359117428,1745715040575,-400.0,0.00016438,2]
[359117430,1745715040584,-400.0,0.00016438,2]
[359117432,1745715040594,-400.0,0.00016438,2]
[359117434,1745715040603,-346.95326685,0.00016438,2]
[359117436,1745715040613,-400.0,0.00016438,2]
[359117438,1745715040622,-400.0,0.00016438,2]
[359117440,1745715040631,-395.69463621,0.00016438,2]
[359117442,1745715040640,-400.0,0.00016438,2]
[359117444,1745715040651,-507.13812556,0.00016438,2]
[359117446,1745715040663,-400.0,0.00016438,2]
[359117448,1745715040673,-400.0,0.00016438,2]
[359117450,1745715040682,-400.0,0.00016438,2]
[359117452,1745715040691,-934.6,0.00016438,2]
[359117454,1745715040701,-400.0,0.00016438,2]
[359117456,1745715040710,-400.0,0.00016438,2]
[359117458,1745715040719,-400.0,0.00016438,2]
[359117460,1745715040730,-400.0,0.00016438,2]
[359117462,1745715040739,-400.0,0.00016438,2]
[359117464,1745715040748,-500.0,0.00016438,2]
[359117466,1745715040758,-400.0,0.00016438,2]
[359117468,1745715040767,-582.97,0.00016438,2]
[359117470,1745715040777,-400.0,0.00016438,2]
[359117472,1745715040786,-928.51,0.00016438,2]
[359117474,1745715040796,-400.0,0.00016438,2]
[359117476,1745715040807,-500.0,0.00016438,2]
[359117478,1745715040817,-400.0,0.00016438,2]
[359117480,1745715040827,-400.0,0.00016438,2]
[359117482,1745715040836,-400.0,0.00016438,2]
[359117484,1745715040846,-400.0,0.00016438,2]
[359117486,1745715040856,-400.0,0.00016438,2]
[359117488,1745715040864,-300.0,0.00016438,2]
[359117490,1745715040874,-400.0,0.00016438,2]
[359117492,1745715040884,-400.0,0.00016438,2]
[359117494,1745715040895,-500.0,0.00016438,2]
[359117496,1745715040904,-400.0,0.00016438,2]
[359117498,1745715040913,-400.0,0.00016438,2]
[359117500,1745715040923,-400.0,0.00016438,2]
[359117502,1745715040933,-400.0,0.00016438,2]
[359117504,1745715040943,-500.0,0.00016438,2]
[359117507,1745715040958,-400.0,0.00016438,2]
[359117509,1745715040968,-400.0,0.00016438,2]
[359117511,1745715040977,-400.0,0.00016438,2]
[359117513,1745715040987,-400.0,0.00016438,2]
[359117515,1745715040997,-400.0,0.00016438,2]
[359117517,1745715041007,-400.0,0.00016438,2]
[359117519,1745715041016,-400.0,0.00016438,2]
[359117521,1745715041026,-400.0,0.00016438,2]
[359117523,1745715041036,-400.0,0.00016438,2]
[359117525,1745715041046,-400.0,0.00016438,2]
[359117527,1745715041057,-400.0,0.00016438,2]
[359117529,1745715041067,-400.0,0.00016438,2]
[359117532,1745715041082,-400.0,0.00016438,2]
[359117534,1745715041092,-400.0,0.00016438,2]
[359117536,1745715041102,-400.0,0.00016438,2]
[359117538,1745715041111,-400.0,0.00016438,2]
[359117540,1745715041121,-400.0,0.00016438,2]
[359117542,1745715041131,-500.0,0.00016438,2]
[359117544,1745715041140,-400.0,0.00016438,2]
[359117546,1745715041150,-400.0,0.00016438,2]
[359117548,1745715041160,-500.0,0.00016438,2]
[359117550,1745715041170,-400.0,0.00016438,2]
[359117552,1745715041179,-400.0,0.00016438,2]
[359117554,1745715041189,-400.0,0.00016438,2]
[359117556,1745715041197,-400.0,0.00016438,2]
[359117558,1745715041207,-400.0,0.00016438,2]
[359117560,1745715041216,-500.0,0.00016438,2]
[359117562,1745715041229,-400.0,0.00016438,2]
[359117565,1745715041239,-400.0,0.00016438,2]
[359117566,1745715041248,-200.0,0.00016438,2]
[359117569,1745715041258,-400.0,0.00016438,2]
[359117571,1745715041268,-400.0,0.00016438,2]
[359117573,1745715041277,-200.0,0.00016438,2]
[359117575,1745715041287,-400.0,0.00016438,2]
[359117577,1745715041296,-400.0,0.00016438,2]
[359117579,1745715041305,-400.0,0.00016438,2]
[359117581,1745715041315,-500.0,0.00016438,2]
[359117583,1745715041324,-400.0,0.00016438,2]
[359117585,1745715041334,-400.0,0.00016438,2]
[359117587,1745715041344,-400.0,0.00016438,2]
[359117589,1745715041355,-400.0,0.00016438,2]
[359117591,1745715041365,-400.0,0.00016438,2]
[359117593,1745715041374,-400.0,0.00016438,2]
[359117595,1745715041384,-400.0,0.00016438,2]
[359117597,1745715041394,-400.0,0.00016438,2]
[359117599,1745715041407,-400.0,0.00016438,2]
[359117601,1745715041417,-400.0,0.00016438,2]
[359117603,1745715041426,-400.0,0.00016438,2]
[359117605,1745715041436,-400.0,0.00016438,2]
[359117607,1745715041446,-400.0,0.00016438,2]
[359117609,1745715041456,-400.0,0.00016438,2]
[359117611,1745715041466,-500.0,0.00016438,2]
[359117613,1745715041476,-500.0,0.00016438,2]
[359117615,1745715041486,-400.0,0.00016438,2]
[359117617,1745715041496,-400.0,0.00016438,2]
[359117619,1745715041505,-400.0,0.00016438,2]
[359117621,1745715041515,-400.0,0.00016438,2]
[359117623,1745715041524,-400.0,0.00016438,2]
[359117625,1745715041534,-400.0,0.00016438,2]
[359117627,1745715041544,-200.0,0.00016438,2]
[359117629,1745715041554,-496.26960928,0.00016438,2]
[359117631,1745715041564,-400.0,0.00016438,2]
[359117633,1745715041574,-400.0,0.00016438,2]
[359117635,1745715041584,-199.98347178,0.00016438,2]
[359117637,1745715041594,-400.0,0.00016438,2]
[359117639,1745715041604,-400.0,0.00016438,2]
[359117641,1745715041614,-400.0,0.00016438,2]
[359117643,1745715041624,-400.0,0.00016438,2]
[359117645,1745715041633,-425.67875566,0.00016438,2]
[359117647,1745715041644,-400.0,0.00016438,2]
[359117649,1745715041654,-198.11882466,0.00016438,2]
[359117651,1745715041664,-400.0,0.00016438,2]
[359117653,1745715041674,-400.0,0.00016438,2]
[359117655,1745715041683,-400.0,0.00016438,2]
[359117657,1745715041693,-400.0,0.00016438,2]
[359117659,1745715041703,-400.0,0.00016438,2]
[359117661,1745715041713,-400.0,0.00016438,2]
[359117663,1745715041723,-500.0,0.00016438,2]
[359117665,1745715041733,-500.0,0.00016438,2]
[359117667,1745715041743,-591.99,0.00016438,2]
[359117669,1745715041752,-400.0,0.00016438,2]
[359117671,1745715041762,-500.0,0.00016438,2]
[359117673,1745715041772,-400.0,0.00016438,2]
[359117675,1745715041782,-500.0,0.00016438,2]
[359117677,1745715041791,-400.0,0.00016438,2]
[359117679,1745715041803,-400.0,0.00016438,2]
[359117681,1745715041812,-400.0,0.00016438,2]
[359117683,1745715041823,-400.0,0.00016438,2]
[359117685,1745715041834,-400.0,0.00016438,2]
[359117687,1745715041845,-500.0,0.00016438,2]
[359117689,1745715041855,-500.0,0.00016438,2]
[359117691,1745715041865,-400.0,0.00016438,2]
[359117693,1745715041874,-400.0,0.00016438,2]
[359117695,1745715041884,-400.0,0.00016438,2]
[359117697,1745715041893,-500.0,0.00016438,2]
[359117699,1745715041903,-500.0,0.00016438,2]
[359117701,1745715041914,-500.0,0.00016438,2]
[359117703,1745715041924,-502.93607963,0.00016438,2]
[359117706,1745715041934,-500.0,0.00016438,2]
[359117708,1745715041944,-500.0,0.00016438,2]
[359117710,1745715041954,-400.0,0.00016438,2]
[359117712,1745715041963,-400.0,0.00016438,2]
[359117714,1745715041973,-412.83,0.00016438,2]
[359117716,1745715041983,-400.0,0.00016438,2]
[359117718,1745715041992,-400.0,0.00016438,2]
[359117720,1745715042002,-501.56002872,0.00016438,2]
[359117722,1745715042011,-400.0,0.00016438,2]